bitfinex/quotes_ETHUSD_20240710
["timestamp","ask_amount","ask_price","bid_price","bid_amount"]
[1720604551010,0.162,3086.7,3086.6,6.11968918]
[1720604551216,0.162,3086.7,3086.6,15.17674621]
[1720604551465,2.4736,3088.0,3086.9,3.23947]
[1720604551625,2.4736,3088.0,3087.0,1.74167149]
[1720604551833,3.23853,3087.9,3087.0,0.61477268]
[1720604552127,3.23853,3087.9,3087.1,0.80847727]
[1720604552329,3.23853,3087.9,3087.2,0.55]
[1720604553226,4.72719177,3087.7,3086.9,7.47]
[1720604553430,5.19991095,3087.7,3086.9,7.47]
[1720604553650,5.19991095,3087.7,3087.0,0.55]
[1720604554653,3.23887,3087.5,3087.0,0.55]
[1720604555620,3.23878,3087.6,3087.0,0.55]
[1720604556151,1.48852177,3087.9,3087.0,1.65918875]
[1720604556152,3.23854,3087.9,3087.0,1.65918875]
[1720604556552,6.47707,3087.9,3087.0,1.65918875]
[1720604557554,3.23853,3087.9,3087.0,1.65918875]
[1720604557918,6.99559177,3088.3,3087.1,2.4856]
[1720604558123,3.0,3088.2,3087.2,1.19124975]
[1720604558339,3.0,3088.2,3087.3,0.06476746]
[1720604558576,3.0,3088.2,3087.4,0.55]
[1720604559327,5.50707,3088.3,3087.4,0.55]
[1720604559743,6.99559177,3088.3,3087.4,0.55]
[1720604560760,2.269,3088.3,3087.5,0.06476724]
[1720604560957,2.269,3088.3,3087.6,0.55]
[1720604561127,2.269,3088.3,3087.7,0.06476553]
[1720604561462,2.269,3088.3,3087.8,0.55]
[1720604561635,3.23793,3088.4,3087.8,0.55]
[1720604562154,3.23793,3088.4,3087.8,0.83857655]
[1720604564764,1.021,3088.3,3087.8,0.83857655]
[1720604565532,1.021,3088.3,3087.8,0.90334083]
[1720604565934,1.021,3088.3,3087.9,0.06476054]
[1720604566181,1.021,3088.3,3088.0,0.55]
[1720604567782,2.4722,3088.9,3088.1,0.06475978]
[1720604567951,1.021,3088.7,3088.2,0.55]
[1720604568150,2.4722,3088.9,3088.2,0.55]
[1720604568383,2.4722,3088.9,3088.2,0.378825]
[1720604568583,1.021,3088.7,3088.3,0.55]
[1720604570282,1.021,3088.7,3088.0,0.55]
[1720604570480,1.021,3088.5,3088.0,0.55]
[1720604570640,1.021,3088.5,3088.1,1.125844]
[1720604570841,1.021,3088.5,3088.2,0.55]
[1720604571341,1.021,3088.3,3087.9,7.47]
[1720604571561,1.021,3088.1,3087.9,7.47]
[1720604571771,1.021,3088.1,3087.9,8.45940874]
[1720604572593,3.23802,3088.3,3087.9,8.45940874]
[1720604573273,1.48852177,3088.7,3087.9,9.724]
[1720604573474,3.23752,3088.8,3088.0,0.55]
[1720604573646,3.23752,3088.8,3088.1,1.0274]
[1720604573848,3.23752,3088.8,3088.2,0.55]
[1720604575495,4.72571177,3089.1,3088.3,0.0647547]
[1720604575710,4.72571177,3089.1,3088.4,0.55]
[1720604576598,3.23698,3089.3,3088.5,0.06474989]
[1720604576786,3.23698,3089.3,3088.6,0.55]
[1720604577303,2.3033,3089.8,3088.7,0.06474702]
[1720604577483,5.53948,3090.1,3088.8,9.79450512]
[1720604577813,4.72478177,3090.0,3088.9,0.0647316]
[1720604577962,4.72478177,3090.0,3089.0,0.55]
[1720604578162,4.72478177,3090.0,3089.1,0.06473186]
[1720604578396,4.72478177,3090.0,3089.2,0.55]
[1720604578562,3.23637,3089.9,3089.2,0.55]
[1720604580603,3.23637,3089.9,3088.9,0.55]
[1720604580905,3.23637,3089.9,3089.0,0.97945051]
[1720604581107,3.23637,3089.9,3089.1,0.55]
[1720604582813,3.23637,3089.9,3089.1,0.61473197]
[1720604583022,4.72448177,3090.3,3089.2,2.4249302]
[1720604583176,4.72448177,3090.3,3089.3,1.17121002]
[1720604583177,3.23603,3090.2,3089.3,1.17121002]
[1720604583375,3.23603,3090.2,3089.3,1.2359374]
[1720604584171,3.23614,3090.1,3089.3,1.2359374]
[1720604585015,3.23614,3090.1,3089.3,1.17121002]
[1720604585513,3.23614,3090.1,3089.3,1.23593745]
[1720604585911,3.23614,3090.1,3089.3,1.17121002]
[1720604587007,3.23614,3090.1,3089.3,1.23593747]
[1720604587314,3.23614,3090.1,3089.3,1.17121002]
[1720604589196,3.23614,3090.1,3089.4,1.100141]
[1720604589397,3.23614,3090.1,3089.5,0.55]
[1720604590696,5.71897,3090.4,3089.5,0.61472612]
[1720604590914,3.23587,3090.4,3089.6,0.17148671]
[1720604591199,4.8698,3090.7,3089.6,0.17148671]
[1720604591200,9.59386177,3090.7,3089.8,2.3353]
[1720604591510,9.59386177,3090.7,3089.9,0.84500221]
[1720604591511,4.72406177,3090.7,3089.9,0.84500221]
[1720604592027,3.23546,3090.8,3089.9,0.84500221]
[1720604593328,3.23552,3090.7,3089.9,0.84500221]
[1720604593535,3.23552,3090.7,3090.0,1.06503022]
[1720604593697,3.23552,3090.7,3090.1,0.55]
[1720604595412,3.23552,3090.7,3090.0,0.55]
[1720604595616,6.47112,3090.7,3090.0,0.55]
[1720604595807,6.47112,3090.7,3090.0,0.71]
[1720604596024,3.23552,3090.7,3090.0,0.71]
[1720604596333,3.23562,3090.6,3090.0,0.71]
[1720604596850,3.23583,3090.4,3090.0,0.71]
[1720604597033,5.53783,3090.3,3090.0,0.16]
[1720604597203,3.23614,3090.1,3090.0,0.16]
[1720604597407,3.23593,3090.3,3090.0,0.16]
[1720604597897,1.48852177,3090.2,3090.0,0.16]
[1720604598546,3.23593,3090.3,3090.0,0.16]
[1720604598699,1.48852177,3090.2,3090.0,0.16]
[1720604598905,6.47228,3090.1,3090.0,0.16]
[1720604599104,11.74168,3090.1,3090.0,0.16]
[1720604599304,13.07117185,3090.1,3090.0,0.16]
[1720604604038,16.30731185,3090.1,3090.0,0.16]
[1720604610059,7.96246177,3089.3,3089.2,7.47]
[1720604610279,7.96246177,3089.3,3088.6,2.4904]
[1720604610280,3.23727,3089.1,3088.7,7.47]
[1720604610688,3.23703,3089.3,3088.9,0.55]
[1720604610856,3.2368,3089.5,3088.9,0.55]
[1720604611052,1.48852177,3089.7,3089.0,2.4794]
[1720604611053,7.96175177,3089.7,3089.0,2.4794]
[1720604611380,7.96175177,3089.7,3088.9,0.55]
[1720604611381,3.23629,3090.0,3089.1,0.85294]
[1720604611552,3.23629,3090.0,3089.2,3.0294]
[1720604615167,4.72469177,3090.1,3089.2,3.09412972]
[1720604615387,4.72469177,3090.1,3089.3,0.30941297]
[1720604615599,4.72469177,3090.1,3089.4,0.55]
[1720604617702,1.48852177,3090.3,3089.5,2.278]
[1720604617987,3.23589,3090.4,3089.6,0.8328]
[1720604618295,3.23589,3090.4,3089.7,2.278]
[1720604618508,3.23589,3090.4,3089.8,0.55]
[1720604619591,1.48852177,3090.5,3089.8,0.55]
[1720604619886,3.23588,3090.4,3089.8,0.55]
[1720604620298,3.23593,3090.3,3089.8,0.55]
[1720604621389,7.96006177,3090.5,3089.8,0.55]
[1720604621718,4.72425177,3090.5,3089.8,0.55]
[1720604622388,3.23583,3090.4,3089.8,0.55]
[1720604624219,3.23593,3090.3,3089.8,0.55]
[1720604624389,6.47195,3090.3,3089.8,0.55]
[1720604624589,3.23604,3090.2,3089.7,0.55]
[1720604625687,3.23593,3090.3,3089.7,1.352]
[1720604625883,4.72427177,3090.5,3089.7,1.352]
[1720604626489,6.2357,3090.6,3089.8,2.4929]
[1720604626820,3.2357,3090.6,3089.9,0.93449]
[1720604627792,1.48852177,3090.7,3089.9,0.93449]
[1720604627987,1.48852177,3090.7,3090.0,2.3283]
[1720604628226,3.23535,3090.9,3090.1,0.876279]
[1720604628407,6.47074,3090.9,3090.1,0.876279]
[1720604628718,3.23541,3090.8,3090.1,0.876279]
[1720604629228,3.23535,3090.9,3090.1,0.876279]
[1720604629387,3.23535,3090.9,3090.2,0.3204579]
[1720604629587,3.23535,3090.9,3090.3,0.55]
[1720604630619,7.95883177,3091.1,3090.4,2.401]
[1720604630924,6.23521,3091.0,3090.4,2.401]
[1720604637144,3.235,3091.2,3090.5,0.55]
[1720604637357,3.235,3091.2,3090.5,0.8451]
[1720604638217,3.23486,3091.4,3090.5,0.90980656]
[1720604638613,3.23473,3091.5,3090.5,0.90980656]
[1720604638958,3.23473,3091.5,3090.6,3.32693766]
[1720604639158,3.23473,3091.5,3090.7,0.61470124]
[1720604639455,3.23473,3091.5,3090.8,0.06470116]
[1720604640063,3.23473,3091.5,3090.9,0.55]
[1720604640559,3.23473,3091.5,3090.8,0.55]
[1720604640773,3.23506,3091.2,3090.8,0.55]
[1720604641052,3.23506,3091.2,3090.3,2.3296]
[1720604641053,6.47034,3091.1,3090.3,2.3296]
[1720604641251,3.2087,3091.1,3090.4,0.55]
[1720604642049,3.2352,3091.0,3090.4,0.55]
[1720604642375,3.2352,3091.0,3090.5,0.36266]
[1720604644051,3.23563,3090.6,3090.0,4.86728742]
[1720604644359,3.23553,3090.7,3090.0,4.86728742]
[1720604644651,3.23553,3090.7,3090.2,8.70372874]
[1720604646745,3.23541,3090.8,3090.2,8.70372874]
[1720604647932,3.39541,3090.8,3090.2,8.70372874]
[1720604648646,3.39541,3090.8,3090.2,1.23372874]
[1720604648955,3.39541,3090.8,3090.0,4.86728742]
[1720604649154,3.39541,3090.8,3090.1,0.55]
[1720604650281,0.16,3090.8,3090.1,0.55]
[1720604650567,0.16,3090.8,3090.2,0.06471471]
[1720604650788,0.16,3090.8,3090.3,0.55]
[1720604651574,0.16,3090.8,3090.4,2.4173]
[1720604651773,0.16,3090.8,3090.5,0.91790654]
[1720604652704,0.16,3090.8,3090.6,2.4173]
[1720604652858,0.16,3090.8,3090.7,2.94359909]
[1720604654989,0.16,3090.8,3090.7,6.17910909]
[1720604656589,0.16,3090.8,3090.7,9.34992]
[1720604657287,0.16,3090.8,3090.7,10.47521335]
[1720604657493,0.16,3090.8,3090.7,9.34992]
[1720604657724,5.62937,3092.1,3091.2,2.3706]
[1720604657860,5.62937,3092.1,3091.3,0.55]
[1720604660265,3.23407,3092.1,3091.3,0.55]
[1720604661588,1.48852177,3092.2,3091.3,0.55]
[1720604661798,4.48852177,3092.2,3091.3,0.61468813]
[1720604661958,4.48852177,3092.2,3091.4,0.29852881]
[1720604662160,3.23405,3092.1,3091.5,0.55]
[1720604662820,2.3613,3092.0,3091.5,0.55]
[1720604663106,3.23425,3091.9,3091.2,0.55]
[1720604663417,3.23425,3091.9,3091.2,1.89140874]
[1720604663568,2.3613,3092.0,3091.2,1.89140874]
[1720604663766,3.23405,3092.1,3091.3,2.3589]
[1720604664076,3.23405,3092.1,3091.4,0.55]
[1720604664422,3.23405,3092.1,3091.5,0.29089]
[1720604665497,6.46818,3092.1,3091.5,0.29089]
[1720604666079,3.23405,3092.1,3091.5,0.29089]
[1720604666378,6.46818,3092.1,3091.5,0.29089]
[1720604666579,3.23416,3092.0,3091.4,0.55]
[1720604667387,3.23426,3091.9,3091.4,0.55]
[1720604667676,3.23426,3091.9,3091.3,0.55]
[1720604667902,3.23426,3091.9,3091.2,1.78799874]
[1720604669874,6.46859,3091.9,3091.2,1.78799874]
[1720604670514,3.23426,3091.9,3091.2,1.78799874]
[1720604671089,6.46859,3091.9,3091.2,1.78799874]
[1720604671484,3.23436,3091.8,3091.2,1.78799874]
[1720604672103,3.23436,3091.8,3091.3,0.73821921]
[1720604672305,3.23436,3091.8,3091.1,7.47]
[1720604672306,3.23469,3091.5,3091.1,7.47]
[1720604672686,6.46902,3091.7,3091.1,7.47]
[1720604672884,2.4106,3092.0,3091.1,8.78340874]
[1720604673082,3.23448,3091.7,3091.1,8.78340874]
[1720604673495,3.23448,3091.7,3091.2,0.55]
[1720604676510,3.23457,3091.6,3091.2,0.55]
[1720604676821,3.23457,3091.6,3091.1,8.78340874]
[1720604676992,3.23457,3091.6,3091.2,1.12074962]
[1720604678092,3.23447,3091.7,3091.2,1.12074962]
[1720604678293,8.87902,3092.0,3091.3,2.447]
[1720604678505,6.46842,3092.0,3091.4,0.36324447]
[1720604679111,3.23418,3092.0,3091.4,0.36324447]
[1720604679312,7.72251177,3092.2,3091.5,0.55]
[1720604679612,3.23415,3092.0,3091.5,0.55]
[1720604680008,3.23415,3092.0,3091.4,0.36324447]
[1720604680407,3.23427,3091.9,3091.4,0.36324447]
[1720604680929,5.67057,3091.8,3091.2,1.12074962]
[1720604681127,5.67057,3091.8,3091.3,0.55]
[1720604682612,1.019,3091.7,3091.3,0.55]
[1720604684201,5.67057,3091.8,3091.3,0.55]
[1720604684517,3.23437,3091.8,3091.4,0.16707496]
[1720604687130,1.019,3091.9,3091.4,0.16707496]
[1720604687740,4.25326,3091.9,3091.4,0.16707496]
[1720604689037,1.019,3091.7,3091.3,0.55]
[1720604689226,4.25349,3091.7,3091.1,7.47]
[1720604689415,4.25349,3091.7,3091.2,0.55]
[1720604690301,4.25349,3091.7,3091.2,1.59440874]
[1720604691399,1.019,3091.7,3091.2,1.59440874]
[1720604691599,4.25346,3091.7,3091.2,1.59440874]
[1720604697743,1.019,3091.7,3091.2,1.59440874]
[1720604698121,4.25346,3091.7,3091.2,1.59440874]
[1720604699456,4.25346,3091.7,3091.1,7.47]
[1720604699457,3.23457,3091.6,3091.1,7.47]
[1720604699662,4.72357177,3091.2,3090.7,20.3070826]
[1720604699857,4.72357177,3091.2,3090.4,3.69496521]
[1720604699858,3.23509,3091.1,3090.4,13.4578826]
[1720604700029,3.23509,3091.1,3090.4,9.8108]
[1720604700228,3.23521,3091.0,3090.4,9.8108]
[1720604700462,3.23533,3090.9,3090.4,10.85986665]
[1720604700668,4.2545,3090.8,3090.4,7.47]
[1720604700970,1.019,3090.8,3090.4,7.47]
[1720604702059,3.23552,3090.7,3090.4,7.47]
[1720604702232,1.019,3090.6,3090.4,7.47]
[1720604702760,4.25441,3090.8,3090.4,7.47]
[1720604705047,4.25441,3090.8,3090.1,14.5008]
[1720604705247,4.25441,3090.8,3090.2,2.74708]
[1720604705553,4.25441,3090.8,3090.2,0.55]
[1720604705945,1.48852177,3091.5,3090.4,3.2358]
[1720604706154,1.019,3091.5,3090.6,6.66265]
[1720604706327,1.019,3091.5,3090.7,4.30927993]
[1720604706526,1.019,3091.5,3090.8,1.67534826]
[1720604706885,1.019,3091.5,3090.8,0.55]
[1720604708583,10.41057177,3091.8,3090.8,0.55]
[1720604708790,4.72272177,3092.0,3090.9,5.61919]
[1720604708973,4.72272177,3092.0,3091.0,1.23807926]
[1720604709460,7.95696177,3092.0,3091.0,1.23807926]
[1720604710062,2.446,3092.1,3091.0,4.47320926]
[1720604710269,4.72230177,3092.4,3091.2,3.23497]
[1720604710603,3.23378,3092.4,3091.4,2.472]
[1720604710902,3.0,3092.3,3091.5,0.61468406]
[1720604711067,3.0,3092.3,3091.6,0.30866841]
[1720604711268,2.446,3092.9,3091.7,0.06468407]
[1720604711269,1.48852177,3092.9,3091.7,0.06468407]
[1720604711462,4.72175177,3092.9,3091.9,2.472]
[1720604711792,2.8014431,3094.0,3091.9,2.472]
[1720604711793,4.72160177,3093.1,3092.0,1.24030017]
[1720604711970,1.48852177,3093.4,3092.2,3.2339]
[1720604712181,1.48852177,3093.4,3092.3,0.61466232]
[1720604712495,1.48852177,3093.4,3092.4,2.472]
[1720604712799,4.72121177,3093.4,3092.5,0.55]
[1720604713000,3.2328,3093.3,3092.5,1.30579064]
[1720604713165,3.23301,3093.1,3092.5,0.71]
[1720604713502,3.23233,3093.8,3092.5,0.71]
[1720604713503,1.48852177,3092.6,3092.5,0.16]
[1720604713814,7.16804177,3092.6,3092.5,0.16]
[1720604713964,8.20818895,3092.6,3092.5,0.16]
[1720604714169,11.44170895,3092.6,3092.5,0.16]
[1720604714518,13.79540895,3092.6,3092.5,0.16]
[1720604714719,16.79540895,3092.6,3092.5,0.16]
[1720604717248,10.95556177,3092.6,3092.5,0.16]
[1720604719123,7.72204177,3092.6,3092.5,0.16]
[1720604719340,3.0,3092.6,3092.5,0.16]
[1720604719683,7.72204177,3092.6,3092.5,0.16]
[1720604719880,10.95556177,3092.6,3092.5,0.16]
[1720604720194,12.29571795,3092.6,3092.5,0.16]
[1720604721205,7.72204177,3092.6,3092.5,0.16]
[1720604721404,6.23352,3092.6,3092.5,0.16]
[1720604722208,7.72204177,3092.6,3092.5,0.16]
[1720604722531,4.72184177,3092.8,3092.5,0.16]
[1720604722698,3.23332,3092.8,3092.5,0.16]
[1720604723319,7.95481177,3093.0,3092.5,0.16]
[1720604723730,4.72163177,3093.0,3092.5,0.16]
[1720604724095,4.72191177,3092.8,3092.5,0.16]
[1720604724293,3.23339,3092.8,3092.5,0.16]
[1720604726248,3.23321,3092.9,3092.5,0.16]
[1720604726433,4.72163177,3093.0,3092.5,0.16]
[1720604726629,5.67901,3093.1,3092.5,0.16]
[1720604727021,4.48852177,3093.2,3092.5,0.16]
[1720604727222,1.48852177,3093.2,3092.5,0.16]
[1720604727421,7.16712177,3093.5,3092.6,2.3789641]
[1720604728536,7.16712177,3093.5,3092.6,2.3143]
[1720604728737,3.23278,3093.4,3092.6,2.3143]
[1720604729063,3.2328,3093.3,3092.6,2.3143]
[1720604729236,3.2328,3093.3,3092.6,3.30873]
[1720604730746,4.72144177,3093.2,3092.6,0.99443]
[1720604730961,4.72144177,3093.2,3092.5,7.63]
[1720604731138,3.23301,3093.1,3092.5,7.63]
[1720604731863,3.23301,3093.1,3092.5,0.16]
[1720604732791,3.23311,3093.0,3092.5,0.16]
[1720604733090,3.23301,3093.1,3092.5,0.16]
[1720604733435,3.23289,3093.2,3092.5,0.16]
[1720604735135,4.72126177,3093.4,3092.5,0.16]
[1720604735332,3.0,3093.3,3092.5,0.50584875]
[1720604736590,6.23279,3093.3,3092.5,0.50584875]
[1720604737375,6.23279,3093.3,3092.6,2.3182]
[1720604737586,3.23301,3093.1,3092.6,2.3182]
[1720604737746,4.72150177,3093.2,3092.6,2.3182]
[1720604737951,4.72150177,3093.2,3092.5,0.16]
[1720604738154,3.23311,3093.0,3092.5,0.16]
[1720604739286,6.4663,3093.0,3092.5,0.16]
[1720604739495,3.23311,3093.0,3092.5,0.16]
[1720604740370,3.23295,3093.2,3092.5,0.16]
[1720604740568,3.233,3093.1,3092.5,0.16]
[1720604740767,3.233,3093.1,3092.5,0.42124]
[1720604741202,3.2331,3093.0,3092.5,0.16]
[1720604741822,4.72147177,3093.2,3092.5,0.16]
[1720604742097,3.0,3093.3,3092.6,0.55]
[1720604742523,6.23287,3093.3,3092.6,0.55]
[1720604744108,3.23287,3093.3,3092.6,0.55]
[1720604744339,3.23252,3093.6,3092.7,2.4614]
[1720604744635,3.23252,3093.6,3092.8,1.174484]
[1720604745341,6.46508,3093.6,3092.8,1.174484]
[1720604745490,3.23275,3093.4,3092.7,2.4614]
[1720604747307,6.46552,3093.4,3092.7,2.4614]
[1720604747546,3.23275,3093.4,3092.7,2.4614]
[1720604747712,3.23275,3093.4,3092.8,0.24614]
[1720604748414,5.446,3094.0,3092.9,2.2891]
[1720604748641,3.0,3093.9,3093.0,0.55]
[1720604748837,5.446,3094.0,3093.1,0.28391]
[1720604749160,5.446,3094.0,3093.2,0.55]
[1720604749572,3.23228,3093.8,3093.2,0.55]
[1720604750784,3.23248,3093.6,3093.1,0.28391]
[1720604751072,3.23271,3093.4,3092.9,9.7591]
[1720604751280,6.46549,3093.4,3092.9,9.7591]
[1720604751444,3.23285,3093.3,3092.9,9.7591]
[1720604751772,3.23285,3093.3,3092.9,10.73501]
[1720604751927,3.23285,3093.3,3092.9,8.44591]
[1720604752432,3.23271,3093.4,3092.9,8.44591]
[1720604752433,3.2329,3093.2,3092.9,8.44591]
[1720604752660,3.2331,3093.0,3092.9,7.47]
[1720604755863,3.2331,3093.0,3092.3,9.8329]
[1720604757303,3.23301,3093.1,3092.3,9.8329]
[1720604757839,6.46611,3093.1,3092.3,9.8329]
[1720604758569,3.23301,3093.1,3092.3,9.8329]
[1720604758738,6.46609,3093.1,3092.3,9.8329]
[1720604759238,3.23312,3093.0,3092.5,1.15929]
[1720604760074,3.23301,3093.1,3092.5,1.15929]
[1720604760777,6.46525,3093.5,3092.6,2.2717]
[1720604760942,6.46525,3093.5,3092.7,0.55]
[1720604761142,3.23259,3093.5,3092.8,0.34682976]
[1720604761339,3.23275,3093.4,3092.8,0.28217]
[1720604761542,3.23281,3093.3,3092.8,0.28217]
[1720604761737,3.23281,3093.3,3092.7,0.55]
[1720604762471,3.2329,3093.2,3092.7,0.55]
[1720604762773,3.2329,3093.2,3092.6,2.2717]
[1720604762774,3.23304,3093.1,3092.6,2.2717]
[1720604762975,3.23289,3093.2,3092.6,2.2717]
[1720604763148,3.23289,3093.2,3092.7,0.343099]
[1720604764153,3.23281,3093.3,3092.7,0.343099]
[1720604764555,4.72114177,3093.5,3092.7,0.343099]
[1720604764851,4.72114177,3093.5,3092.8,0.2614799]
[1720604765051,3.23241,3093.7,3092.9,2.8664]
[1720604766682,3.2322,3093.9,3093.0,0.06465302]
[1720604766890,3.2322,3093.9,3093.1,0.8431053]
[1720604767182,3.23201,3094.1,3093.2,0.06465]
[1720604767385,3.23209,3094.0,3093.3,0.55]
[1720604767767,3.23219,3093.9,3093.3,0.55]
[1720604768247,3.23219,3093.9,3093.4,0.28323]
[1720604768679,9.18452177,3094.2,3092.9,7.47]
[1720604768680,1.48852177,3093.6,3092.9,7.47]
[1720604769069,1.48852177,3093.8,3092.9,7.47]
[1720604769470,3.23219,3093.9,3093.0,2.8645]
[1720604769677,3.23219,3093.9,3093.1,1.03345]
[1720604769882,3.23219,3093.9,3093.2,0.55]
[1720604770387,3.23219,3093.9,3093.3,2.4776]
[1720604770888,3.23255,3093.6,3093.1,1.03345]
[1720604771187,3.23232,3093.8,3093.0,2.44685446]
[1720604771358,3.23232,3093.8,3093.1,0.55]
[1720604771888,3.23208,3094.0,3093.2,0.06464881]
[1720604772078,6.46422,3094.0,3093.3,0.55]
[1720604772383,1.48852177,3094.4,3093.4,2.4612]
[1720604772586,3.23181,3094.3,3093.5,0.85112]
[1720604774657,1.48852177,3094.2,3093.5,0.30112]
[1720604775352,3.2318,3094.3,3093.5,0.30112]
[1720604775555,3.23199,3094.1,3093.6,0.276232]
[1720604775770,3.2318,3094.3,3093.6,0.276232]
[1720604776873,3.2318,3094.3,3093.7,2.3805]
[1720604777372,6.46364,3094.3,3093.7,2.3805]
[1720604777561,3.2318,3094.3,3093.7,2.6461732]
[1720604778162,3.23187,3094.2,3093.7,2.6461732]
[1720604778370,3.23187,3094.2,3093.7,2.3805]
[1720604778570,3.23209,3094.0,3093.3,2.3401]
[1720604778781,1.48852177,3094.2,3093.4,0.55]
[1720604778977,3.23224,3093.9,3093.3,2.3401]
[1720604779182,3.23233,3093.8,3093.3,2.3401]
[1720604779691,3.2322,3093.9,3093.3,2.3401]
[1720604779871,3.2322,3093.9,3093.4,0.23401]
[1720604780067,3.2321,3094.0,3093.4,0.23401]
[1720604780490,4.72062177,3094.0,3093.4,0.23401]
[1720604780671,3.2321,3094.0,3093.4,0.23401]
[1720604782294,3.2321,3094.0,3093.3,2.3401]
[1720604782515,3.23227,3093.8,3093.1,2.97]
[1720604782996,3.23237,3093.7,3093.1,2.97]
[1720604783199,3.23237,3093.7,3093.1,4.78619874]
[1720604783419,3.23225,3093.9,3093.1,4.78619874]
[1720604783703,3.23228,3093.8,3093.1,4.78619874]
[1720604783869,3.23249,3093.6,3093.1,2.97]
[1720604784197,3.23249,3093.6,3093.0,2.2979]
[1720604784399,3.23249,3093.6,3093.1,1.21919874]
[1720604785078,4.72080177,3093.8,3093.1,1.21919874]
[1720604785276,7.95315177,3093.8,3093.1,1.21919874]
[1720604785474,3.23238,3093.7,3093.1,1.21919874]
[1720604786184,3.23241,3093.7,3093.1,1.21919874]
[1720604786987,3.23248,3093.6,3093.1,1.21919874]
[1720604787388,3.23248,3093.6,3093.2,0.35170987]
[1720604787590,4.72080177,3093.8,3093.2,0.35170987]
[1720604787777,3.23228,3093.8,3093.2,0.35170987]
[1720604787977,6.46424,3094.0,3093.3,0.55]
[1720604788185,3.23221,3093.9,3093.3,0.55]
[1720604788380,3.23229,3093.8,3093.2,0.35170987]
[1720604790295,3.2321,3094.0,3093.3,2.4667]
[1720604790491,3.2321,3094.0,3093.4,0.28184099]
[1720604790891,3.23185,3094.2,3093.4,0.28184099]
[1720604791093,3.23185,3094.2,3093.5,0.55]
[1720604791300,6.46378,3094.2,3093.5,0.55]
[1720604791674,3.23185,3094.2,3093.5,0.55]
[1720604792211,6.46379,3094.2,3093.5,0.55]
[1720604792507,3.23198,3094.1,3093.5,0.55]
[1720604792812,3.23185,3094.2,3093.5,0.8798541]
[1720604793110,3.73962177,3094.1,3093.5,0.3298541]
[1720604793484,3.23237,3093.7,3093.2,0.35170987]
[1720604794091,3.23216,3093.9,3093.2,0.35170987]
[1720604794289,3.23233,3093.8,3093.2,0.35170987]
[1720604795299,3.23207,3094.0,3093.3,0.55]
[1720604795500,3.23207,3094.0,3093.4,2.49]
[1720604795785,3.2319,3094.2,3093.5,0.304]
[1720604797935,3.2319,3094.2,3093.6,2.2999]
[1720604798085,9.46343,3094.4,3093.6,2.2999]
[1720604798282,1.48852177,3094.5,3093.6,2.2999]
[1720604798483,4.71992177,3094.7,3093.8,2.2624]
[1720604798781,4.71992177,3094.7,3093.9,0.06463579]
[1720604799213,3.2315,3094.6,3093.9,0.06463579]
[1720604799892,3.2315,3094.6,3093.8,2.2624]
[1720604800094,3.2315,3094.6,3093.8,2.54364]
[1720604800515,4.72008177,3094.5,3093.8,2.54364]
[1720604800681,3.23173,3094.4,3093.8,2.54364]
[1720604801183,3.23173,3094.4,3093.8,0.28124]
[1720604801386,3.23173,3094.4,3093.5,2.6349]
[1720604801615,3.23173,3094.4,3093.6,0.55]
[1720604802140,3.23177,3094.3,3093.6,0.55]
[1720604804290,3.23175,3094.3,3093.6,0.55]
[1720604804504,3.23175,3094.3,3093.7,0.31849]
[1720604805182,4.72008177,3094.5,3093.8,2.3107]
[1720604805894,3.23166,3094.4,3093.8,2.3107]
[1720604807494,6.46338,3094.4,3093.8,2.3107]
[1720604807796,6.46338,3094.4,3093.6,0.55]
[1720604807984,3.23177,3094.3,3093.7,0.32172]
[1720604815018,3.23186,3094.2,3093.7,0.32172]
[1720604815218,3.23212,3094.0,3093.5,2.3577]
[1720604815422,3.2323,3093.8,3093.4,7.47]
[1720604815592,3.23241,3093.7,3093.4,7.47]
[1720604816021,3.23248,3093.6,3093.4,7.47]
[1720604816552,4.72131177,3093.3,3092.9,2.42408742]
[1720604816856,3.2331,3093.0,3092.9,2.42408742]
[1720604818320,3.29781672,3093.0,3092.5,0.16]
[1720604818540,3.23352,3092.6,3092.5,0.16]
[1720604820337,6.46704,3092.6,3092.5,0.16]
[1720604820639,3.23423,3092.0,3091.8,12.16]
[1720604820815,5.74494672,3092.0,3091.3,7.47]
[1720604821015,5.74494672,3092.0,3091.4,0.747]
[1720604821237,3.23445,3091.8,3091.3,7.47]
[1720604821540,3.2346,3091.6,3091.0,19.63]
[1720604821746,3.2346,3091.6,3091.0,2.19418]
[1720604822038,3.2346,3091.6,3090.9,2.3118]
[1720604822736,3.23469,3091.5,3090.7,10.7]
[1720604822941,3.2346,3091.6,3090.7,10.7]
[1720604823340,3.23453,3091.7,3090.7,10.7]
[1720604823653,3.23459,3091.6,3090.8,1.07]
[1720604823935,3.23459,3091.6,3090.9,0.55]
[1720604824337,3.23471,3091.5,3090.9,0.55]
[1720604825040,3.23471,3091.5,3090.9,1.782]
[1720604825808,0.06471672,3091.4,3090.9,1.782]
[1720604826123,3.23499,3091.2,3090.7,10.7]
[1720604826437,1.55323849,3091.4,3090.7,10.7]
[1720604826438,3.23497,3091.3,3090.7,10.7]
[1720604827246,3.23497,3091.3,3090.7,3.23]
[1720604828341,3.23497,3091.3,3090.8,0.323]